bitfinex/quotes_ETHUSD_20250507
["timestamp","ask_amount","ask_price","bid_price","bid_amount"]
[1746583942556,0.49707965,1825.7,1825.5,5.47777466]
[1746583942764,3.8274,1825.9,1825.6,5.47765118]
[1746583942970,3.0,1825.9,1825.7,5.47712372]
[1746583943128,0.40948748,1826.0,1825.8,5.47705115]
[1746583943329,0.49750588,1825.9,1825.7,5.47713374]
[1746583943558,0.49750588,1825.9,1825.7,10.95428946]
[1746583943949,0.49750588,1825.8,1825.7,5.47713374]
[1746583944262,0.49750588,1826.0,1825.7,5.47715785]
[1746583944446,0.49750588,1826.0,1825.7,12.64015785]
[1746583944655,0.49750588,1825.9,1825.7,12.64015785]
[1746583944859,0.49750588,1825.9,1825.7,5.47715785]
[1746583945029,0.49750588,1825.8,1825.7,5.47715785]
[1746583945230,5.00366897,1825.8,1825.2,0.8142]
[1746583945565,6.78832697,1825.7,1825.3,5.47841849]
[1746583945971,0.49750588,1825.6,1825.4,5.47820389]
[1746583946461,0.49750588,1825.6,1825.3,5.47840895]
[1746583946762,0.49802454,1825.5,1825.3,1.17713445]
[1746583946978,0.49802454,1825.5,1825.2,0.8142]
[1746583947144,0.49802454,1825.4,1825.3,5.47855147]
[1746583947339,0.49802454,1825.4,1825.2,6.29279464]
[1746583947572,0.49802454,1825.3,1825.2,6.29279464]
[1746583948079,0.49802454,1825.3,1825.2,20.51179464]
[1746583948496,5.47885163,1825.2,1824.8,5.47984668]
[1746583948839,0.59768762,1825.2,1824.9,5.4796181]
[1746583951185,0.49811561,1825.6,1825.5,5.47778085]
[1746583953212,3.58335099,1826.3,1826.0,5.47640526]
[1746583953416,3.58335099,1826.3,1826.1,5.47600161]
[1746583953605,0.49913193,1826.2,1826.1,5.47600161]
[1746583955002,0.49913193,1826.2,1826.1,5.53075788]
[1746583955215,0.49913193,1826.2,1826.1,6.57671614]
[1746583955524,3.58335099,1826.3,1826.2,6.27905149]
[1746583956029,0.4,1826.6,1826.5,5.47495209]
[1746583956230,3.98335099,1826.7,1826.6,5.47465235]
[1746583957394,3.98335099,1826.7,1826.6,6.33259402]
[1746583957597,3.98335099,1826.7,1826.6,8.87270696]
[1746583958632,3.98335099,1826.7,1826.6,9.42270696]
[1746583958800,3.58335099,1826.7,1826.6,9.42270696]
[1746583959198,0.7592,1827.5,1827.3,5.47240327]
[1746583959424,8.47167158,1827.6,1827.3,7.006]
[1746583959934,8.47165785,1827.6,1827.3,7.006]
[1746583960895,5.47247049,1827.4,1827.3,6.983]
[1746583961228,5.47214262,1827.5,1827.3,6.983]
[1746583961431,5.47228445,1827.4,1827.0,5.4733144]
[1746583961642,5.47228445,1827.4,1827.1,14.073]
[1746583961840,6.56672716,1827.4,1827.1,14.073]
[1746583962509,5.47214388,1827.5,1827.1,19.54597418]
[1746583962706,5.47231313,1827.4,1827.1,6.96]
[1746583963199,10.94433916,1827.5,1827.1,12.4330531]
[1746583963405,5.47226797,1827.4,1827.1,6.96]
[1746583964109,10.94477063,1827.4,1827.1,6.96]
[1746583964311,5.47226797,1827.4,1827.1,6.96]
[1746583965632,5.47257577,1827.3,1826.9,5.47359262]
[1746583965838,0.7721,1827.3,1827.0,6.918]
[1746583966043,0.7721,1827.3,1826.8,6.23563817]
[1746583966044,5.47361459,1827.0,1826.8,13.907]
[1746583966551,5.47361459,1827.0,1826.8,6.976]
[1746583967202,6.24470851,1827.3,1826.6,6.28764807]
[1746583967203,5.47335397,1827.1,1826.6,6.28764807]
[1746583967441,5.4736098,1827.0,1826.7,13.891]
[1746583967657,5.4736098,1827.0,1826.7,19.36535039]
[1746583967976,5.4733357,1827.1,1826.7,13.891]
[1746583968265,5.47353527,1827.0,1826.7,13.891]
[1746583968425,5.47353527,1827.0,1826.6,19.34945785]
[1746583969075,5.47353527,1827.0,1826.6,13.875]
[1746583969254,0.62447085,1827.2,1826.8,5.47399855]
[1746583969457,6.24484819,1827.3,1826.8,5.47399855]
[1746583969773,5.47298005,1827.2,1826.8,5.47399855]
[1746583970646,5.47317857,1827.1,1826.7,5.47416584]
[1746583970846,5.47317857,1827.1,1826.7,19.32416584]
[1746583971248,5.47317857,1827.1,1826.7,24.79834898]
[1746583971443,5.47298005,1827.2,1826.8,5.47403511]
[1746583971672,6.2447008,1827.3,1826.9,11.75942189]
[1746583971971,5.47286058,1827.2,1826.8,5.4739683]
[1746583972471,5.47316452,1827.1,1826.8,5.4739683]
[1746583972769,5.47286058,1827.2,1826.8,5.47393102]
[1746583972970,5.47316425,1827.1,1826.7,6.28653967]
[1746583973159,5.47316425,1827.1,1826.8,13.824]
[1746583973360,5.47316425,1827.1,1826.7,20.11146155]
[1746583974038,5.47316425,1827.1,1826.7,19.29916155]
[1746583974350,5.47316425,1827.1,1826.7,24.77328862]
[1746583974550,5.47316425,1827.1,1826.8,5.4740469]
[1746583974758,5.47316425,1827.1,1826.7,19.2991382]
[1746583974960,3.0,1827.0,1826.4,5.47520347]
[1746583975184,5.47392334,1826.9,1826.5,19.27683949]
[1746583975347,5.97002077,1826.9,1826.5,12.44983949]
[1746583975566,0.49609743,1826.9,1826.6,5.47446738]
[1746583975752,3.0,1826.9,1826.7,5.47421294]
[1746583976540,3.0,1826.9,1826.6,5.47443734]
[1746583976847,3.0,1827.0,1826.6,2.47522356]
[1746583977054,3.0,1827.0,1826.7,5.47423095]
[1746583977235,3.0,1827.0,1826.7,10.94837466]
[1746583977438,3.0,1827.0,1826.7,5.47414371]
[1746583978593,0.7887,1827.2,1826.8,5.473909]
[1746583978910,6.26170367,1827.2,1826.8,5.473909]
[1746583979065,7.435143,1827.2,1826.8,5.473909]
[1746583979263,0.4972103,1827.1,1826.8,5.47385839]
[1746583979480,0.4972103,1827.0,1826.8,5.47385839]
[1746583979978,0.4972103,1827.0,1826.9,5.47375335]
[1746583980189,0.4972103,1827.1,1827.0,5.47345374]
[1746583980396,0.4972103,1827.1,1826.9,5.47355336]
[1746583980595,0.4972103,1827.2,1826.9,5.47355336]
[1746583980793,0.4972103,1827.2,1827.0,5.4733016]
[1746583981297,0.4972103,1827.3,1827.0,5.47324902]
[1746583981462,0.4972103,1827.3,1827.1,5.47302496]
[1746583981663,0.4972103,1827.2,1827.0,5.47324902]
[1746583981905,0.4972103,1827.2,1827.1,5.47315417]
[1746583982405,0.4972103,1827.3,1827.2,5.47285464]
[1746583982556,0.4972103,1827.3,1827.2,5.52758114]
[1746583982761,0.4972103,1827.3,1827.2,5.47285464]
[1746583983005,0.4972103,1827.3,1827.2,8.01840552]
[1746583983181,0.7692,1827.4,1827.1,24.68211122]
[1746583983380,0.7692,1827.4,1827.2,5.47284089]
[1746583983691,0.7692,1827.6,1827.3,5.47245678]
[1746583984089,0.49976755,1827.5,1827.3,5.47245678]
[1746583984402,0.30003239,1827.4,1826.8,12.30506396]
[1746583984602,0.7692,1827.2,1826.9,13.728]
[1746583984766,5.77244607,1827.4,1827.0,5.47330089]
[1746583984767,1.06923239,1827.4,1827.0,5.47330089]
[1746583985099,0.79979994,1827.1,1827.0,5.47330089]
[1746583985597,0.79979994,1827.1,1826.9,19.20155686]
[1746583985991,0.49976755,1827.0,1826.9,19.20155686]
[1746583987199,0.49976755,1827.0,1826.9,20.02555686]
[1746583988600,3.0,1827.6,1827.3,5.4723062]
[1746583988808,6.22612038,1827.7,1827.4,5.47220753]
[1746583988809,0.7546,1827.7,1827.4,5.47220753]
[1746583988991,0.4,1827.9,1827.6,5.47162129]
[1746583989299,0.5001991,1827.6,1827.5,18.89595622]
[1746583990771,0.5001991,1827.6,1827.2,20.4888]
[1746583990972,0.7685,1827.5,1826.9,14.1788]
[1746583991176,5.97269455,1827.4,1827.0,5.47332931]
[1746583991518,0.59726945,1827.3,1827.0,5.47326081]
[1746583991697,0.5001991,1827.3,1827.0,5.47321989]
[1746583992014,5.97277363,1827.3,1826.9,18.88558676]
[1746583992171,0.79993415,1827.2,1827.1,5.47315417]
[1746583992509,0.79993415,1827.2,1827.1,6.23195417]
[1746583993086,0.29973505,1827.2,1827.1,6.23195417]
[1746583993422,0.4,1827.6,1827.1,6.23195417]
[1746583993423,0.4,1827.6,1827.5,5.47195622]
[1746583993621,1.1919,1827.9,1827.6,5.47157292]
[1746583994202,0.79911054,1827.8,1827.6,5.47157292]
[1746583994629,0.49953102,1827.7,1827.6,5.47157292]
[1746583995120,0.49953102,1827.7,1827.5,12.18482057]
[1746583995717,0.49953102,1827.6,1827.5,12.18482057]
[1746583996317,0.49953102,1827.6,1827.5,6.713]
[1746583996683,0.49953102,1827.6,1827.5,12.18495622]
[1746583997134,0.49953102,1827.6,1827.5,6.713]
[1746583997491,0.49953102,1827.6,1827.5,12.18495622]
[1746583998234,0.49953102,1827.6,1827.5,15.38555511]
[1746583998441,0.4,1827.9,1827.8,5.4710581]
[1746583998796,1.2181,1828.1,1827.9,5.47072421]
[1746583998995,0.49891424,1828.0,1827.9,5.47072421]
[1746584000520,0.49891424,1828.0,1827.9,6.23992421]
[1746584000723,0.8181,1828.9,1827.9,14.09071752]
[1746584001025,6.28606303,1828.9,1828.4,5.46911561]
[1746584001332,5.46821555,1828.8,1828.5,6.712]
[1746584001510,11.75403372,1828.9,1828.5,6.712]
[1746584001834,11.75405909,1828.9,1828.5,6.712]
[1746584002127,5.46807894,1828.8,1828.5,6.712]
[1746584002423,5.46807894,1828.8,1828.2,0.7692]
[1746584002424,5.46868413,1828.6,1828.2,5.46969246]
[1746584002631,6.01555254,1828.6,1828.3,13.329]
[1746584003047,6.01565125,1828.6,1828.3,6.712]
[1746584003224,0.54686841,1828.6,1828.3,12.18151264]
[1746584003427,6.30139722,1828.7,1828.3,12.18142565]
[1746584003807,6.30139722,1828.7,1828.3,6.712]
[1746584004007,6.30139722,1828.7,1828.3,12.1815502]
[1746584004201,0.833,1828.7,1828.3,6.712]
[1746584004408,0.833,1828.7,1828.4,5.46913199]
[1746584004835,0.833,1828.7,1828.3,6.712]
[1746584005142,6.30154872,1828.7,1828.3,12.18154532]
[1746584005875,6.30142213,1828.7,1828.3,6.712]
[1746584006371,5.46876896,1828.6,1828.0,0.8044]
[1746584006567,6.01593959,1828.5,1828.0,6.711]
[1746584006923,5.46947082,1828.4,1828.0,6.711]
[1746584007128,9.04477671,1830.3,1828.4,6.2119]
[1746584007331,1.48146209,1829.7,1829.1,11.22916964]
[1746584007636,5.73853255,1830.0,1829.3,0.55]
[1746584007848,5.73853255,1830.0,1829.4,7.73]
[1746584008047,0.8027,1829.9,1829.1,0.55]
[1746584008252,5.46518607,1829.8,1828.9,0.7688]
[1746584008428,0.54651861,1829.7,1828.6,0.7688]
[1746584008625,6.26845545,1829.6,1828.6,0.7688]
[1746584008875,7.872,1829.5,1828.6,6.2374129]
[1746584009026,7.872,1829.5,1828.6,8.6648]
[1746584009227,7.872,1829.5,1828.6,7.896]
[1746584009423,0.7872,1829.4,1828.6,7.896]
[1746584009930,0.7872,1829.4,1828.5,5.4689483]
[1746584009931,7.872,1829.3,1828.7,5.46819183]
[1746584010132,7.872,1829.3,1828.6,13.35151076]
[1746584010331,7.872,1829.3,1828.6,13.35154198]
[1746584010538,7.872,1829.3,1828.7,5.46828376]
[1746584010731,8.73792,1829.3,1828.7,5.46828376]
[1746584011373,8.73792,1829.3,1828.6,7.883]
[1746584011540,0.8086,1829.2,1828.2,0.7661]
[1746584011743,0.8086,1829.2,1828.6,3.65448034]
[1746584012683,8.4676959,1829.0,1828.6,3.65448034]
[1746584012907,6.31455835,1828.9,1828.6,3.65448034]
[1746584013180,7.87,1828.8,1828.6,3.65448034]
[1746584014444,7.87,1828.8,1828.1,5.4701488]
[1746584014660,7.87,1828.8,1828.1,5.46999149]
[1746584014955,7.87,1828.8,1828.2,5.46972612]
[1746584015155,8.74167696,1828.8,1828.2,5.46972612]
[1746584015342,8.74167696,1828.8,1828.3,5.52423473]
[1746584015558,7.87,1828.7,1828.3,0.05468961]
[1746584015754,7.87,1828.7,1828.3,5.46939882]
[1746584015992,0.7748,1829.1,1828.4,8.6477836]
[1746584016280,6.24900669,1829.4,1828.4,8.6477836]
[1746584016500,5.46692192,1829.2,1828.4,8.5921]
[1746584016684,5.46692192,1829.2,1828.4,14.92044581]
[1746584016989,5.46768203,1829.0,1828.2,5.46974006]
[1746584017187,23.4977,1829.1,1828.2,10.93933963]
[1746584017383,5.46790294,1828.9,1828.2,5.46960807]
[1746584017585,5.46924948,1828.5,1827.5,3.25899889]
[1746584017803,0.7625,1828.4,1827.2,9.12733454]
[1746584018004,7.87,1828.3,1827.2,4.48208034]
[1746584018165,5.47000957,1828.2,1827.5,5.47183449]
[1746584018516,5.47068669,1828.0,1827.3,5.47243105]
[1746584018794,7.87,1827.9,1827.5,5.47182057]
[1746584018959,7.87,1827.9,1827.5,6.02446282]
[1746584019162,7.87,1827.9,1827.5,0.55265379]
[1746584019362,7.87,1827.9,1827.4,5.47206744]
[1746584019805,7.87,1827.9,1827.2,3.65448034]
[1746584019974,7.87,1827.9,1827.7,5.47127639]
[1746584020181,7.87,1827.9,1827.6,5.47153284]
[1746584022501,0.7625,1828.1,1827.8,5.47093113]
[1746584022667,0.7625,1828.1,1827.9,5.4705013]
[1746584022865,8.6345,1828.1,1827.9,5.4705013]
[1746584023065,8.6345,1828.1,1827.8,6.01801037]
[1746584023268,8.6345,1828.1,1827.8,11.48885079]
[1746584023469,0.7625,1828.1,1827.9,5.47048124]
[1746584023668,0.7927,1828.4,1828.0,5.47025543]
[1746584023976,0.7927,1828.4,1828.1,5.47016027]
[1746584024375,0.7927,1828.4,1828.1,5.46993745]
[1746584024585,0.7927,1828.4,1828.3,5.46956188]
[1746584024808,0.7724,1828.7,1828.4,5.46923925]
[1746584024971,0.4058989,1830.9,1828.7,5.762]
[1746584025173,0.4058989,1830.9,1828.8,35.678]
[1746584025174,0.7724,1830.8,1828.8,35.678]
[1746584025381,5.28227002,1830.7,1829.0,3.0]
[1746584025581,6.23539999,1830.5,1829.5,5.46589935]
[1746584025781,0.7724,1830.3,1829.5,8.129]
[1746584026066,5.4640794,1830.2,1829.5,8.129]
[1746584026265,5.46435535,1830.1,1829.5,13.59491336]
[1746584026685,6.23603392,1830.3,1829.6,5.46549668]
[1746584026891,0.62360339,1830.2,1829.7,5.46531559]
[1746584027095,3.62360339,1830.2,1829.7,5.46531559]
[1746584027510,0.62360339,1830.2,1829.8,5.46504389]
[1746584027814,0.7724,1830.3,1829.8,5.46490083]
[1746584028218,0.7724,1830.3,1829.5,8.129]
[1746584028524,3.0,1830.2,1829.5,5.46578032]
[1746584028725,8.46413369,1830.2,1829.5,5.46578032]
[1746584029031,5.46388372,1830.2,1829.5,5.46578032]
[1746584029349,3.54638837,1830.1,1829.5,5.46578032]
[1746584029627,9.01067742,1830.1,1829.4,5.46611289]
[1746584029936,8.46448087,1830.0,1829.3,5.46641075]
[1746584030236,7.87,1829.9,1829.3,5.46643013]
[1746584030431,0.787,1829.8,1829.3,5.46657191]
[1746584030719,3.787,1829.8,1829.3,5.46657191]
[1746584031116,3.787,1829.8,1828.9,8.8145]
[1746584031309,3.787,1829.8,1829.3,5.46637564]
[1746584033337,3.787,1829.8,1829.3,5.46635658]
[1746584033535,0.36919364,1829.7,1829.4,5.46626874]
[1746584033699,3.787,1829.8,1829.4,5.46606563]
[1746584033901,3.787,1829.8,1829.6,5.46564098]
[1746584034126,0.787,1829.8,1829.5,5.46578927]
[1746584034297,0.8022,1829.7,1829.2,5.46669699]
[1746584034492,0.8022,1829.7,1829.2,10.9333365]
[1746584034698,1.80764008,1829.7,1829.3,5.46642519]
[1746584034925,0.8022,1829.7,1829.3,5.46642519]
[1746584035137,0.8022,1829.7,1829.2,5.52139255]
[1746584035309,0.8022,1829.7,1829.3,5.46629178]
[1746584035515,0.8022,1829.7,1829.4,5.52091083]
[1746584035714,0.8022,1829.7,1829.4,5.46624941]
[1746584037135,0.8022,1829.7,1829.3,5.46645554]
[1746584037343,1.26112,1829.7,1829.2,5.46669929]
[1746584037638,1.26112,1829.7,1829.2,5.46665838]
[1746584037844,0.8022,1829.7,1829.1,7.908]
[1746584038053,0.8022,1829.7,1829.4,5.46597736]
[1746584038854,0.8022,1829.7,1829.1,13.37491886]
[1746584039067,3.0,1829.8,1829.5,5.46572567]
[1746584041834,3.0,1829.8,1829.5,10.93152172]
[1746584042032,3.0,1829.8,1829.6,5.46555112]
[1746584042262,3.0,1829.8,1829.6,5.46547167]
[1746584042444,7.87,1829.9,1829.6,5.46547167]
[1746584042635,7.87,1829.9,1829.5,5.52045264]
[1746584042855,7.87,1829.9,1829.5,5.46579961]
[1746584043057,9.58622939,1829.9,1829.5,5.46579961]
[1746584043252,7.87,1829.9,1829.5,10.93153944]
[1746584043449,7.87,1829.9,1829.6,5.46564831]
[1746584044392,7.87,1829.9,1829.6,5.4654828]
[1746584044682,7.87,1829.9,1829.5,5.46587138]
[1746584044890,3.0,1829.8,1829.6,5.46565003]
[1746584045687,7.87,1829.9,1829.7,5.46537581]
[1746584045892,7.877,1830.3,1829.8,5.46492992]
[1746584046086,8.6508,1830.3,1829.7,5.46522006]
[1746584046388,3.0,1830.2,1829.8,5.4648858]
[1746584046788,5.46459653,1830.0,1829.5,5.46580239]
[1746584046995,3.0,1829.9,1829.5,5.46580239]
[1746584047685,3.0,1830.1,1829.6,5.46541507]
[1746584047892,8.46418542,1830.1,1829.6,5.46541507]
[1746584048066,4.72649299,1830.1,1829.6,5.46541507]
[1746584048398,4.72649299,1830.1,1829.7,5.46533304]
[1746584048559,4.72649299,1830.1,1829.7,5.51984717]
[1746584048891,3.0,1830.1,1829.8,5.46501533]
[1746584049075,3.0,1830.1,1829.9,5.46476326]
[1746584049276,7.877,1830.2,1829.9,5.46477949]
[1746584049477,7.877,1830.2,1830.0,5.46446665]
[1746584049887,7.877,1830.2,1830.0,10.92873289]
[1746584050194,7.877,1830.2,1830.1,5.46418228]
[1746584050392,7.877,1830.2,1829.7,19.42890994]
[1746584050393,7.877,1830.2,1829.8,5.46492322]
[1746584050787,7.877,1830.2,1829.8,10.92980476]
[1746584051095,7.877,1830.2,1829.9,5.46475366]
[1746584052602,7.877,1830.2,1829.8,5.46504745]
[1746584052782,8.74208,1830.2,1829.7,5.46509068]
[1746584053019,8.74208,1830.2,1829.8,5.46502721]
[1746584054293,7.877,1830.2,1829.8,5.4649579]
[1746584054493,7.877,1830.2,1829.8,5.46486663]
[1746584054716,7.877,1830.2,1829.9,5.46475883]
[1746584056326,7.877,1830.2,1829.7,5.46522781]
[1746584056525,3.0,1830.1,1829.5,6.04]
[1746584056829,8.46423815,1830.1,1829.6,6.06946105]
[1746584057007,3.0,1830.1,1829.7,5.46525602]
[1746584057601,3.0,1830.1,1829.8,5.46506196]
[1746584057952,3.0,1830.1,1829.7,5.46526063]
[1746584058298,3.0,1830.1,1829.7,5.46519686]
[1746584058499,4.228844,1830.1,1829.7,5.46519686]
[1746584058699,9.69313756,1830.1,1829.6,5.46553629]
[1746584058936,9.69313756,1830.1,1829.6,12.98453629]
[1746584059299,10.10102142,1830.1,1829.6,12.98453629]
[1746584059516,4.63672786,1830.1,1829.7,5.46537662]
[1746584060514,3.40788386,1830.1,1829.5,7.5]
[1746584060726,3.40788386,1830.1,1829.7,5.46524983]
[1746584061238,3.40788386,1830.1,1829.7,5.46521661]
[1746584061544,3.40788386,1830.1,1829.8,5.46506041]
[1746584061778,7.587,1830.2,1830.0,5.46438234]
[1746584061983,7.587,1830.2,1830.0,5.4644618]
[1746584062882,3.0,1830.3,1830.1,5.46396813]
[1746584063163,3.0,1830.3,1830.1,5.46396367]
[1746584063325,3.0,1830.3,1830.2,5.46388372]
[1746584064251,19.705,1830.5,1830.3,5.46336855]
[1746584064569,7.587,1830.6,1830.3,10.92674165]
[1746584064775,7.587,1830.6,1830.3,5.46336855]
[1746584065455,7.587,1830.6,1830.4,5.46326963]
[1746584066065,7.587,1830.6,1830.3,6.00970541]
[1746584067166,7.587,1830.6,1830.3,11.47306972]
[1746584067335,7.587,1830.6,1830.3,6.00970117]
[1746584067533,3.0,1830.8,1830.4,0.7766]
[1746584067734,0.4058989,1830.9,1830.5,5.46286978]
[1746584068055,0.4058989,1830.9,1830.5,5.51738067]
[1746584068229,0.4058989,1830.9,1830.6,5.4625789]
[1746584068932,0.4058989,1830.9,1830.5,5.46275698]
[1746584069372,0.4058989,1830.9,1830.6,5.46257883]
[1746584069569,0.4058989,1830.9,1830.5,5.46284936]
[1746584069775,0.4058989,1830.9,1830.4,6.91836274]
[1746584069932,3.0,1830.8,1830.1,6.7962]
[1746584070270,6.27859834,1830.7,1830.3,7.351]
[1746584070484,3.8162,1830.7,1830.3,7.351]
[1746584070771,3.0,1830.5,1830.1,18.84605547]
[1746584070946,5.46323002,1830.5,1830.1,13.382]
[1746584071134,3.0,1830.4,1829.9,5.46461443]
[1746584071328,3.0,1830.4,1830.1,5.46417478]
[1746584071732,3.0,1830.4,1830.1,5.46389239]
[1746584072055,3.0,1830.4,1830.1,5.46404061]
[1746584072253,3.0,1830.4,1830.2,5.46388134]
[1746584072577,6.27869315,1830.7,1830.2,7.13279219]
[1746584072578,0.8162,1830.7,1830.2,7.13279219]
[1746584072731,0.8162,1830.7,1830.2,18.06025883]
[1746584072937,9.27871458,1830.7,1830.2,11.50365516]
[1746584073164,0.8162,1830.7,1830.2,11.50365516]
[1746584073366,0.8162,1830.7,1830.3,5.46339169]
[1746584073579,5.46282265,1830.6,1830.1,5.46412032]
[1746584073729,3.0,1830.5,1830.1,5.46412032]
[1746584074768,3.0,1830.6,1830.1,5.51865694]
[1746584074971,3.0,1830.6,1830.2,5.46384053]
[1746584075172,3.0,1830.6,1830.3,5.46352167]
[1746584075471,3.0,1830.6,1830.3,5.46338312]
[1746584075629,3.0,1830.6,1830.4,5.46316333]
[1746584076571,3.0,1830.6,1830.3,5.46342985]
[1746584076868,0.8162,1830.7,1830.3,12.09499881]
[1746584077076,0.8162,1830.7,1830.4,5.46312494]
[1746584077237,0.8162,1830.7,1830.3,6.63162317]
[1746584077437,0.8162,1830.7,1830.4,5.46327466]
[1746584077969,0.8162,1830.7,1830.3,6.63163107]
[1746584078174,0.8162,1830.7,1830.3,12.09497225]
[1746584078338,0.8162,1830.7,1830.3,12.09495222]
[1746584078672,0.8162,1830.7,1830.4,5.46326572]
[1746584079685,0.4058989,1830.9,1830.8,5.46209307]
[1746584079976,0.4058989,1830.9,1830.6,11.50251706]
[1746584080178,0.4058989,1830.9,1830.6,11.50251465]
[1746584080376,0.4058989,1830.9,1830.7,5.46237332]
[1746584080541,0.4058989,1830.9,1830.7,5.46221433]
[1746584080983,0.4058989,1830.9,1830.8,5.46209307]
[1746584082182,0.4058989,1830.9,1830.8,5.51670531]
[1746584082334,0.4058989,1830.9,1830.8,5.46209307]
[1746584082541,0.4058989,1830.9,1830.8,6.22849307]
[1746584082961,0.4058989,1830.9,1830.8,6.28309874]
[1746584083183,0.4058989,1830.9,1830.8,7.57267187]
[1746584083493,0.4058989,1830.9,1830.8,8.12267187]
[1746584084299,0.4608989,1830.9,1830.8,14.16267187]
[1746584084502,0.4608989,1830.9,1830.8,13.61267187]
[1746584084801,0.4608989,1830.9,1830.8,20.87267187]
[1746584085491,0.4608989,1830.9,1830.8,7.57267187]
[1746584085694,0.4608989,1830.9,1830.8,14.81667187]
[1746584086828,0.4608989,1830.9,1830.8,14.04427187]
[1746584089327,0.4608989,1830.9,1830.8,20.08427187]
[1746584090094,0.4608989,1830.9,1830.8,21.45957187]
[1746584091100,0.4608989,1830.9,1830.8,20.08427187]
[1746584091299,0.4608989,1830.9,1830.8,20.02227187]
[1746584091899,0.4608989,1830.9,1830.8,20.57227187]
[1746584095021,0.4608989,1830.9,1830.8,20.02227187]
[1746584096861,0.4608989,1830.9,1830.8,12.84627187]
[1746584097149,0.4608989,1830.9,1830.8,19.94027187]
[1746584098356,0.4608989,1830.9,1830.8,13.90027187]
[1746584101247,0.4608989,1830.9,1830.8,6.80627187]
[1746584101445,0.4608989,1830.9,1830.6,5.46253341]
[1746584101659,0.4608989,1830.9,1830.5,5.46279673]
[1746584101859,3.4608989,1830.9,1830.5,5.46276067]
[1746584102281,3.4608989,1830.9,1830.5,10.92553998]
[1746584102484,3.4608989,1830.9,1830.6,5.46266727]
[1746584102686,3.4608989,1830.9,1830.5,7.25896177]
[1746584102986,3.4608989,1830.9,1830.5,12.7217556]
[1746584103208,3.4608989,1830.9,1830.5,7.25894783]
[1746584103391,3.4608989,1830.9,1830.5,12.7217472]
[1746584103566,3.4608989,1830.9,1830.5,7.25894783]
[1746584104982,3.4608989,1830.9,1830.5,12.77636849]
[1746584105186,3.4608989,1830.9,1830.6,5.46267213]
[1746584106286,3.4608989,1830.9,1830.5,7.25895587]
[1746584106581,3.7807,1830.8,1830.4,5.46328596]
[1746584106781,0.7807,1830.8,1830.5,5.4628447]
[1746584107387,0.7807,1830.8,1830.4,0.05462704]
[1746584107588,0.7807,1830.8,1830.5,5.46280864]
[1746584107908,0.7807,1830.8,1830.4,10.98089787]
[1746584108201,0.7807,1830.8,1830.5,5.46289134]
[1746584108574,0.7807,1830.8,1830.5,5.51751511]
[1746584108775,0.7807,1830.8,1830.6,5.46256402]
[1746584110364,0.7807,1830.8,1830.5,5.51746479]
[1746584110712,0.7807,1830.8,1830.5,10.98028062]
[1746584110899,0.7807,1830.8,1829.9,6.8063]
[1746584111099,9.72332781,1830.6,1830.2,5.46385252]
[1746584111399,9.72323263,1830.6,1830.2,5.46359193]
[1746584111601,6.21479805,1830.7,1830.4,5.46328671]
[1746584111602,0.7523,1830.7,1830.4,5.46328671]
[1746584111906,6.21471567,1830.7,1830.2,5.46362964]
[1746584112119,6.21471567,1830.7,1830.1,10.92801633]
[1746584112120,5.46289046,1830.6,1830.1,10.92801633]
[1746584112421,0.7523,1830.7,1830.5,5.46283712]
[1746584112914,0.7523,1830.7,1830.6,5.46268982]
[1746584113278,1.2356989,1830.9,1830.6,5.46268982]
[1746584113480,1.2356989,1830.9,1830.7,5.46223105]
[1746584113977,1.2356989,1830.9,1830.7,6.55472314]
[1746584114526,1.2356989,1830.9,1830.7,6.60933993]
[1746584114832,1.2356989,1830.9,1830.7,6.60932251]
[1746584115133,1.2356989,1830.9,1830.7,6.55470572]
[1746584115623,1.2356989,1830.9,1830.7,6.60932248]
[1746584115926,1.2356989,1830.9,1830.7,6.6092812]
[1746584116224,1.2356989,1830.9,1830.7,12.0168469]
[1746584117319,1.2356989,1830.9,1830.8,5.46209307]
[1746584118025,0.4608989,1830.9,1830.8,6.71838564]
[1746584118278,0.4608989,1830.9,1830.8,6.66376882]
[1746584118439,0.4608989,1830.9,1830.8,1.20167575]
[1746584118618,1.2628989,1830.9,1830.7,5.46219038]
[1746584119810,0.4608989,1830.9,1830.7,5.51680096]
[1746584120022,0.4608989,1830.9,1830.7,5.46218419]
[1746584120324,0.4608989,1830.9,1830.8,6.31790482]
[1746584120543,0.4608989,1830.9,1830.8,6.26329307]
[1746584120693,0.4608989,1830.9,1830.8,7.4358408]
[1746584122303,0.4608989,1830.9,1830.8,6.6346408]
[1746584123043,0.4608989,1830.9,1830.8,13.4386408]
[1746584123248,0.4608989,1830.9,1830.8,6.6346408]
[1746584130651,0.4608989,1830.9,1830.8,5.46209307]
[1746584130873,3.58240228,1830.9,1830.3,10.37548034]
[1746584131159,2.30040338,1830.7,1830.5,5.46279383]
[1746584131662,2.30040338,1830.7,1830.6,0.25701397]
[1746584131818,17.78172091,1830.9,1830.6,0.25701397]
[1746584132019,17.78172091,1830.9,1830.5,5.46279383]
[1746584132257,3.8323,1830.8,1830.5,5.46291536]
[1746584132438,9.2945571,1830.8,1830.6,0.22384907]
[1746584132613,9.2945571,1830.8,1830.4,5.46313927]
[1746584132814,5.46240745,1830.7,1830.5,0.22394632]
[1746584133023,5.46240745,1830.7,1830.3,9.11787356]
[1746584133220,3.8323,1830.8,1830.6,0.22384907]
[1746584133461,3.0,1830.5,1830.3,3.65448034]
[1746584133662,3.7575,1830.4,1830.3,3.65448034]
[1746584133817,3.7575,1830.4,1830.0,3.65448034]
[1746584133818,5.4637693,1830.3,1830.0,3.65448034]
[1746584134021,5.01833277,1830.2,1830.0,3.65448034]
[1746584134326,10.48235844,1830.2,1830.0,3.65448034]
[1746584135550,0.7575,1830.2,1830.0,3.65448034]
[1746584135736,0.7575,1830.2,1830.0,15.4949486]
[1746584135939,0.7575,1830.2,1830.0,10.0306729]
[1746584136259,0.7575,1830.2,1830.0,3.65448034]
[1746584136560,0.7575,1830.2,1830.1,5.46418228]
[1746584137080,1.16722624,1830.2,1830.1,5.46418228]
[1746584138464,0.7575,1830.2,1830.1,5.46418228]
[1746584139131,10.6013,1830.4,1830.1,5.46395186]
[1746584139465,10.6013,1830.4,1830.1,5.46394861]
[1746584140061,10.6013,1830.4,1830.2,5.46376092]
[1746584140254,10.6013,1830.4,1830.1,5.46418228]
[1746584140425,16.48169654,1830.4,1830.0,5.46435871]